[Event "*** Titled Tuesday Blitz"]
[Site "Chess.com"]
[Date "2019.03.05"]
[Round "2"]
[White "HanSchut"]
[Black "Yurovskykh_Oleksandr"]
[Result "1-0"]
[WhiteElo "2330"]
[BlackElo "2524"]
[TimeControl "180+2"]
[EndTime "13:24:33 PST"]
[Termination "HanSchut won by resignation"]

1. e4 {[%clk 0:03:01.9]} 1... e6 {[%clk 0:02:57.9]} 2. d4 {[%clk 0:03:02.1]}
2... d5 {[%clk 0:02:58.9]} 3. Nd2 {[%clk 0:03:03.5]} 3... Be7 {[%clk 0:02:59.4]}
4. c3 {[%clk 0:02:59.1]} 4... c5 {[%clk 0:02:59.2]} 5. dxc5 {[%clk 0:03:00.3]}
5... Nf6 {[%clk 0:02:57.1]} 6. Bd3 {[%clk 0:02:56.9]} 6... dxe4 {[%clk
0:02:51.1]} 7. Nxe4 {[%clk 0:02:56.7]} 7... Nxe4 {[%clk 0:02:52]} 8. Bxe4 {[%clk
0:02:58.6]} 8... Qxd1+ {[%clk 0:02:52.8]} 9. Kxd1 {[%clk 0:03:00.5]} 9... Bxc5
{[%clk 0:02:54.3]} 10. Ke2 {[%clk 0:02:59.4]} 10... Nd7 {[%clk 0:02:55.7]} 11.
Be3 {[%clk 0:03:00.7]} 11... Bxe3 {[%clk 0:02:55.1]} 12. Kxe3 {[%clk 0:03:02.6]}
12... Nf6 {[%clk 0:02:56.7]} 13. Bf3 {[%clk 0:03:03]} 13... Bd7 {[%clk
0:02:48.4]} 14. Ne2 {[%clk 0:03:01]} 14... O-O-O {[%clk 0:02:41]} 15. Rhd1
{[%clk 0:02:53.9]} 15... Kc7 {[%clk 0:02:41.4]} 16. Ng3 {[%clk 0:02:44.1]} 16...
Bc6 {[%clk 0:02:40.9]} 17. Bxc6 {[%clk 0:02:42.9]} 17... Kxc6 {[%clk 0:02:41.4]}
18. c4 {[%clk 0:02:30.9]} 18... Ng4+ {[%clk 0:02:40]} 19. Kf3 {[%clk 0:02:10.5]}
19... Ne5+ {[%clk 0:02:40.6]} 20. Ke2 {[%clk 0:02:04.4]} 20... Nxc4 {[%clk
0:02:23.4]} 21. Rdc1 {[%clk 0:01:57.9]} 21... Kb5 {[%clk 0:02:12.7]} 22. Ne4
{[%clk 0:01:55.9]} 22... Nd6 {[%clk 0:02:01.6]} 23. Nxd6+ {[%clk 0:01:47.9]}
23... Rxd6 {[%clk 0:02:03.5]} 24. Rc7 {[%clk 0:01:48.8]} 24... Kb6 {[%clk
0:01:49.9]} 25. Rxf7 {[%clk 0:01:48.6]} 25... Rc8 {[%clk 0:01:46.2]} 26. b4
{[%clk 0:01:34.6]} 26... Rc2+ {[%clk 0:01:44.7]} 27. Kf1 {[%clk 0:01:35.5]}
27... Rdd2 {[%clk 0:01:42.8]} 28. a4 {[%clk 0:01:32.2]} 28... g5 {[%clk
0:01:27.4]} 29. h3 {[%clk 0:01:17.9]} 29... a5 {[%clk 0:01:24.1]} 30. bxa5+
{[%clk 0:01:12.6]} 30... Kxa5 {[%clk 0:01:26]} 31. Kg1 {[%clk 0:01:08.7]} 31...
b6 {[%clk 0:01:05]} 32. Rf6 {[%clk 0:00:49.8]} 32... Re2 {[%clk 0:00:41.7]} 33.
Rf8 {[%clk 0:00:36.2]} 33... h5 {[%clk 0:00:41.3]} 34. Ra8+ {[%clk 0:00:33.4]}
34... Kb4 {[%clk 0:00:42.2]} 35. Rb8 {[%clk 0:00:34.8]} 35... Ka5 {[%clk
0:00:09.9]} 36. Ra8+ {[%clk 0:00:31.5]} 36... Kb4 {[%clk 0:00:11.1]} 37. Rb8
{[%clk 0:00:33.1]} 37... Kc3 {[%clk 0:00:08.2]} 38. Rxb6 {[%clk 0:00:30.1]}
38... Rxf2 {[%clk 0:00:08.5]} 39. Rc6+ {[%clk 0:00:30.5]} 39... Kb4 {[%clk
0:00:09.5]} 40. Rxc2 {[%clk 0:00:31.2]} 40... Rxc2 {[%clk 0:00:11.4]} 41. a5
{[%clk 0:00:32.5]} 41... Rc7 {[%clk 0:00:12.2]} 42. a6 {[%clk 0:00:33.2]} 42...
Ra7 {[%clk 0:00:13]} 43. Kf2 {[%clk 0:00:32.3]} 43... Kb5 {[%clk 0:00:13.3]} 44.
Ke3 {[%clk 0:00:33]} 44... Rxa6 {[%clk 0:00:05.1]} 45. Rxa6 {[%clk 0:00:34.9]}
45... Kxa6 {[%clk 0:00:07]} 46. Ke4 {[%clk 0:00:36]} 46... Kb5 {[%clk
0:00:06.8]} 47. Ke5 {[%clk 0:00:37.2]} 47... Kc5 {[%clk 0:00:07.4]} 48. Kxe6
{[%clk 0:00:38.4]} 48... Kd4 {[%clk 0:00:07.7]} 49. Kf5 {[%clk 0:00:39.2]} 49...
Ke3 {[%clk 0:00:07.7]} 50. Kxg5 {[%clk 0:00:39.8]} 50... Kf2 {[%clk 0:00:06.1]}
51. Kxh5 {[%clk 0:00:40.3]} 51... Kxg2 {[%clk 0:00:07.2]} 52. Kg4 {[%clk
0:00:41.8]} 1-0

[Event "*** Titled Tuesday Blitz"]
[Site "Chess.com"]
[Date "2019.03.05"]
[Round "2"]
[White "GelmanAlexander"]
[Black "ShimanovAlex"]
[Result "1/2-1/2"]
[WhiteElo "2592"]
[BlackElo "2831"]
[TimeControl "180+2"]
[EndTime "13:24:43 PST"]
[Termination "Game drawn by agreement"]

1. d4 {[%clk 0:03:01.9]} 1... Nf6 {[%clk 0:02:56.2]} 2. Nc3 {[%clk 0:03:02.7]}
2... d5 {[%clk 0:02:53.7]} 3. Bf4 {[%clk 0:03:03.6]} 3... a6 {[%clk 0:02:54.1]}
4. e3 {[%clk 0:03:04.5]} 4... e6 {[%clk 0:02:54.9]} 5. g4 {[%clk 0:03:05]} 5...
b5 {[%clk 0:02:52.6]} 6. g5 {[%clk 0:03:05.8]} 6... Nfd7 {[%clk 0:02:54]} 7. h4
{[%clk 0:03:06.7]} 7... Bb7 {[%clk 0:02:53.2]} 8. Qg4 {[%clk 0:02:26.3]} 8... c5
{[%clk 0:02:47.3]} 9. Nf3 {[%clk 0:02:20.8]} 9... Nc6 {[%clk 0:02:47.8]} 10. h5
{[%clk 0:02:18.1]} 10... Qa5 {[%clk 0:02:42.5]} 11. g6 {[%clk 0:01:42.2]} 11...
hxg6 {[%clk 0:02:36.2]} 12. hxg6 {[%clk 0:01:43.2]} 12... f5 {[%clk 0:02:36.5]}
13. Qg2 {[%clk 0:01:31.5]} 13... Rxh1 {[%clk 0:02:36.3]} 14. Qxh1 {[%clk
0:01:33.1]} 14... b4 {[%clk 0:02:37.6]} 15. Nd1 {[%clk 0:01:29.9]} 15... O-O-O
{[%clk 0:02:21.1]} 16. Be2 {[%clk 0:01:14.8]} 16... b3+ {[%clk 0:01:54.1]} 17.
c3 {[%clk 0:01:14.7]} 17... Qxa2 {[%clk 0:01:46.8]} 18. Rc1 {[%clk 0:01:15.3]}
18... Nf6 {[%clk 0:01:21.9]} 19. Ng5 {[%clk 0:01:15.9]} 19... Re8 {[%clk
0:01:18.6]} 20. c4 {[%clk 0:01:10.7]} 20... dxc4 {[%clk 0:01:00]} 21. Bf3 {[%clk
0:01:01.9]} 21... Qa5+ {[%clk 0:00:37.2]} 22. Kf1 {[%clk 0:00:58]} 22... Qb6
{[%clk 0:00:37.2]} 23. Rxc4 {[%clk 0:00:56.4]} 23... Na5 {[%clk 0:00:24.3]} 24.
Rc1 {[%clk 0:00:43.4]} 24... c4 {[%clk 0:00:25.4]} 25. Nc3 {[%clk 0:00:36]}
25... Bxf3 {[%clk 0:00:25.2]} 26. Qxf3 {[%clk 0:00:36.8]} 26... Qb7 {[%clk
0:00:26.6]} 27. Qxb7+ {[%clk 0:00:34.1]} 27... Kxb7 {[%clk 0:00:27.4]} 28. Ra1
{[%clk 0:00:32.5]} 28... Bb4 {[%clk 0:00:26.2]} 29. Ra4 {[%clk 0:00:28.8]} 29...
Bxc3 {[%clk 0:00:25.9]} 30. bxc3 {[%clk 0:00:30.1]} 30... Nc6 {[%clk 0:00:27.2]}
31. Nf3 {[%clk 0:00:26.4]} 31... Ne4 {[%clk 0:00:27.1]} 32. Ra1 {[%clk
0:00:21.3]} 32... Nxc3 {[%clk 0:00:23.6]} 33. Nd2 {[%clk 0:00:22.1]} 33... b2
{[%clk 0:00:16.9]} 34. Re1 {[%clk 0:00:19.8]} 34... Rh8 {[%clk 0:00:12]} 35. Kg2
{[%clk 0:00:20.2]} 35... a5 {[%clk 0:00:13.3]} 36. Bd6 {[%clk 0:00:20]} 36...
Nb5 {[%clk 0:00:12.7]} 37. Nxc4 {[%clk 0:00:20.5]} 37... a4 {[%clk 0:00:12.6]}
38. Bc5 {[%clk 0:00:20]} 38... Rh6 {[%clk 0:00:12.4]} 39. Rb1 {[%clk 0:00:20.9]}
39... Rxg6+ {[%clk 0:00:13.8]} 40. Kf3 {[%clk 0:00:22.6]} 40... a3 {[%clk
0:00:07.5]} 41. Nxa3 {[%clk 0:00:23.2]} 41... Nxa3 {[%clk 0:00:08.6]} 42. Bxa3
{[%clk 0:00:23.8]} 42... Kc7 {[%clk 0:00:09.6]} 43. Rxb2 {[%clk 0:00:25.3]}
43... Rh6 {[%clk 0:00:11]} 44. Rc2 {[%clk 0:00:25.9]} 44... Kd7 {[%clk
0:00:11.8]} 45. Rb2 {[%clk 0:00:26.2]} 45... Kc7 {[%clk 0:00:10.8]} 46. Bc5
{[%clk 0:00:26.6]} 46... Rh3+ {[%clk 0:00:11]} 47. Kg2 {[%clk 0:00:27.2]} 47...
Rh8 {[%clk 0:00:12.6]} 48. Rc2 {[%clk 0:00:26.9]} 48... Kd7 {[%clk 0:00:13.8]}
49. Rb2 {[%clk 0:00:27.7]} 49... Rb8 {[%clk 0:00:15]} 50. Rxb8 {[%clk
0:00:27.4]} 50... Nxb8 {[%clk 0:00:16.9]} 51. Kf3 {[%clk 0:00:28.7]} 51... Nc6
{[%clk 0:00:17.8]} 52. e4 {[%clk 0:00:29.2]} 52... fxe4+ {[%clk 0:00:18.5]} 53.
Kxe4 {[%clk 0:00:30.6]} 53... Na5 {[%clk 0:00:17.6]} 54. d5 {[%clk 0:00:31.5]}
54... Nb3 {[%clk 0:00:17.5]} 55. dxe6+ {[%clk 0:00:30.9]} 55... Kxe6 {[%clk
0:00:18.6]} 56. Be3 {[%clk 0:00:32.4]} 56... Na5 {[%clk 0:00:19.1]} 57. Kf4
{[%clk 0:00:32.8]} 1/2-1/2

[Event "*** Titled Tuesday Blitz"]
[Site "Chess.com"]
[Date "2019.03.05"]
[Round "2"]
[White "Bad4life"]
[Black "Maili15"]
[Result "1-0"]
[WhiteElo "2493"]
[BlackElo "2275"]
[TimeControl "180+2"]
[EndTime "13:24:43 PST"]
[Termination "Bad4life won by resignation"]

1. e4 {[%clk 0:03:01.9]} 1... c5 {[%clk 0:03:00.3]} 2. Nf3 {[%clk 0:02:59.4]}
2... d6 {[%clk 0:03:00.8]} 3. d4 {[%clk 0:03:00.1]} 3... cxd4 {[%clk 0:03:02.7]}
4. Nxd4 {[%clk 0:03:02]} 4... Nf6 {[%clk 0:03:02.7]} 5. Nc3 {[%clk 0:03:03.6]}
5... a6 {[%clk 0:03:03.3]} 6. a3 {[%clk 0:03:04.5]} 6... e5 {[%clk 0:03:02.7]}
7. Nf5 {[%clk 0:03:05.8]} 7... Bxf5 {[%clk 0:03:00.1]} 8. exf5 {[%clk
0:03:06.8]} 8... Be7 {[%clk 0:02:42.2]} 9. g4 {[%clk 0:02:58.9]} 9... h6 {[%clk
0:02:39.1]} 10. Bg2 {[%clk 0:02:58.9]} 10... Nc6 {[%clk 0:02:31.3]} 11. O-O
{[%clk 0:02:56.4]} 11... O-O {[%clk 0:02:25.1]} 12. Kh1 {[%clk 0:02:56.7]} 12...
Qc7 {[%clk 0:02:20]} 13. Be3 {[%clk 0:02:54.3]} 13... Rfd8 {[%clk 0:02:00.4]}
14. f4 {[%clk 0:02:43.5]} 14... exf4 {[%clk 0:01:46.5]} 15. Bxf4 {[%clk
0:02:41.8]} 15... Ne5 {[%clk 0:01:46.3]} 16. h3 {[%clk 0:02:30.9]} 16... Nc4
{[%clk 0:01:30.9]} 17. Qe1 {[%clk 0:02:14.3]} 17... Rac8 {[%clk 0:01:11.4]} 18.
Rb1 {[%clk 0:01:40.7]} 18... Bf8 {[%clk 0:01:03.8]} 19. Nd5 {[%clk 0:01:32.3]}
19... Nxd5 {[%clk 0:01:00.7]} 20. Bxd5 {[%clk 0:01:34.2]} 20... Re8 {[%clk
0:00:44.5]} 21. Qc3 {[%clk 0:01:26.4]} 21... Nb6 {[%clk 0:00:23]} 22. Qxc7
{[%clk 0:00:55.2]} 22... Rxc7 {[%clk 0:00:24.9]} 23. Bb3 {[%clk 0:00:56.9]}
23... Re4 {[%clk 0:00:18]} 24. Rbe1 {[%clk 0:00:53.6]} 24... Rce7 {[%clk
0:00:17.3]} 25. Rd1 {[%clk 0:00:48.8]} 25... d5 {[%clk 0:00:13.2]} 26. Bxd5
{[%clk 0:00:37.9]} 26... Nxd5 {[%clk 0:00:15.1]} 27. Rxd5 {[%clk 0:00:38.6]}
27... Re2 {[%clk 0:00:14.9]} 28. Rd8 {[%clk 0:00:31.2]} 28... Re8 {[%clk
0:00:14.2]} 29. Rxe8 {[%clk 0:00:31.2]} 29... Rxe8 {[%clk 0:00:14.9]} 30. Kg2
{[%clk 0:00:31.1]} 30... Re2+ {[%clk 0:00:14]} 31. Rf2 {[%clk 0:00:32.7]} 31...
Re4 {[%clk 0:00:14.4]} 32. Kf3 {[%clk 0:00:29.6]} 32... Rc4 {[%clk 0:00:14]} 33.
c3 {[%clk 0:00:29.4]} 33... Be7 {[%clk 0:00:13.7]} 34. Re2 {[%clk 0:00:29.5]}
34... Kf8 {[%clk 0:00:14.6]} 35. Bc1 {[%clk 0:00:25.5]} 35... g6 {[%clk
0:00:13.9]} 36. Re5 {[%clk 0:00:21.9]} 36... g5 {[%clk 0:00:13.9]} 37. Rd5
{[%clk 0:00:22.2]} 37... Bf6 {[%clk 0:00:14.2]} 38. Rd7 {[%clk 0:00:21.4]} 38...
b6 {[%clk 0:00:14.5]} 39. Ra7 {[%clk 0:00:21.9]} 39... a5 {[%clk 0:00:14.9]} 40.
Be3 {[%clk 0:00:23.3]} 40... Bd8 {[%clk 0:00:14.9]} 41. Ra8 {[%clk 0:00:23.8]}
41... Ke7 {[%clk 0:00:16]} 42. Rb8 {[%clk 0:00:25.3]} 42... Rc6 {[%clk
0:00:15.3]} 43. Rb7+ {[%clk 0:00:25.5]} 43... Ke8 {[%clk 0:00:15.5]} 44. Bd4
{[%clk 0:00:26.3]} 44... Rd6 {[%clk 0:00:14.1]} 45. Ke4 {[%clk 0:00:26.3]} 45...
Rc6 {[%clk 0:00:11.6]} 46. Kd5 {[%clk 0:00:25.8]} 46... Rc7 {[%clk 0:00:12.5]}
47. Rxc7 {[%clk 0:00:25.8]} 47... Bxc7 {[%clk 0:00:14.4]} 48. Kc6 {[%clk
0:00:27.5]} 48... Bf4 {[%clk 0:00:14.4]} 49. a4 {[%clk 0:00:27]} 49... Bc1
{[%clk 0:00:14.7]} 50. b3 {[%clk 0:00:28.5]} 50... Bd2 {[%clk 0:00:14.7]} 51.
Kxb6 {[%clk 0:00:29.4]} 1-0

[Event "*** Titled Tuesday Blitz"]
[Site "Chess.com"]
[Date "2019.03.05"]
[Round "2"]
[White "b_6"]
[Black "calemcc"]
[Result "1-0"]
[WhiteElo "2404"]
[BlackElo "2236"]
[TimeControl "180+2"]
[EndTime "13:24:43 PST"]
[Termination "b_6 won by resignation"]

1. d4 {[%clk 0:03:01.9]} 1... d5 {[%clk 0:03:00.2]} 2. Bf4 {[%clk 0:03:02.8]}
2... Nf6 {[%clk 0:02:57.4]} 3. e3 {[%clk 0:03:03.9]} 3... c5 {[%clk 0:02:58.1]}
4. c3 {[%clk 0:03:01.3]} 4... Nc6 {[%clk 0:02:57.2]} 5. Nd2 {[%clk 0:03:02]}
5... Bg4 {[%clk 0:02:55.6]} 6. Qb3 {[%clk 0:03:02.3]} 6... Qb6 {[%clk
0:02:52.2]} 7. dxc5 {[%clk 0:02:59]} 7... Qxb3 {[%clk 0:02:48.2]} 8. axb3 {[%clk
0:02:59.5]} 8... e5 {[%clk 0:02:48.4]} 9. Bg3 {[%clk 0:03:00.6]} 9... Bxc5
{[%clk 0:02:47.1]} 10. h3 {[%clk 0:02:59.8]} 10... Bh5 {[%clk 0:02:41.1]} 11.
Ngf3 {[%clk 0:03:00.7]} 11... Bd6 {[%clk 0:02:27.3]} 12. Bb5 {[%clk 0:02:51.9]}
12... Nd7 {[%clk 0:02:24.4]} 13. Nd4 {[%clk 0:02:40.8]} 13... exd4 {[%clk
0:02:13.2]} 14. Bxd6 {[%clk 0:02:41]} 14... dxe3 {[%clk 0:02:14.5]} 15. fxe3
{[%clk 0:02:39.8]} 15... Nf6 {[%clk 0:02:13.6]} 16. O-O {[%clk 0:02:30.8]} 16...
Kd7 {[%clk 0:02:14.1]} 17. Be5 {[%clk 0:02:09]} 17... Ke6 {[%clk 0:02:13.8]} 18.
Bh2 {[%clk 0:02:05.3]} 18... Ne5 {[%clk 0:02:06]} 19. Rae1 {[%clk 0:01:32.9]}
19... a6 {[%clk 0:02:04.5]} 20. Be2 {[%clk 0:01:32.1]} 20... Bxe2 {[%clk
0:02:00.7]} 21. Rxe2 {[%clk 0:01:34]} 21... Nc6 {[%clk 0:01:37.9]} 22. e4 {[%clk
0:01:28.9]} 22... d4 {[%clk 0:01:38.3]} 23. Nf3 {[%clk 0:01:26.4]} 23... Rad8
{[%clk 0:01:34.8]} 24. e5 {[%clk 0:01:10.8]} 24... d3 {[%clk 0:00:52.1]} 25.
Ng5+ {[%clk 0:01:10.1]} 25... Kd5 {[%clk 0:00:48.7]} 26. Rd2 {[%clk 0:01:08]}
26... Nxe5 {[%clk 0:00:45.4]} 27. Bxe5 {[%clk 0:01:06.2]} 27... Kxe5 {[%clk
0:00:47.3]} 28. Nxf7+ {[%clk 0:01:07.1]} 28... Ke4 {[%clk 0:00:48.4]} 29. Re1+
{[%clk 0:01:01.2]} 29... Kf5 {[%clk 0:00:48]} 30. Nxh8 {[%clk 0:00:53.4]} 30...
Ne4 {[%clk 0:00:49]} 31. Rdd1 {[%clk 0:00:43.8]} 31... d2 {[%clk 0:00:46.5]} 32.
Rf1+ {[%clk 0:00:42.3]} 32... Ke6 {[%clk 0:00:36.2]} 33. Nf7 {[%clk 0:00:42.5]}
33... Rd5 {[%clk 0:00:33.8]} 34. Rf4 {[%clk 0:00:39.1]} 34... Ng3 {[%clk
0:00:30.2]} 35. Kf2 {[%clk 0:00:39.9]} 35... Nh5 {[%clk 0:00:26.3]} 36. Rf3
{[%clk 0:00:37.1]} 36... Nf6 {[%clk 0:00:27.8]} 37. Nh8 {[%clk 0:00:32.3]} 37...
Re5 {[%clk 0:00:20.9]} 38. Re3 {[%clk 0:00:31]} 38... Ne4+ {[%clk 0:00:20.4]}
39. Kf3 {[%clk 0:00:27.6]} 39... Ng5+ {[%clk 0:00:19.8]} 40. Ke2 {[%clk
0:00:28.9]} 40... Ne4 {[%clk 0:00:20.2]} 41. b4 {[%clk 0:00:21.5]} 41... Kd5
{[%clk 0:00:16.3]} 42. Rd3+ {[%clk 0:00:21.2]} 42... Kc4 {[%clk 0:00:16.9]} 43.
Re3 {[%clk 0:00:21.6]} 43... Kb3 {[%clk 0:00:16.9]} 44. Rxd2 {[%clk 0:00:21.2]}
44... Ng3+ {[%clk 0:00:14.1]} 45. Kd3 {[%clk 0:00:17.7]} 45... Rxe3+ {[%clk
0:00:16]} 46. Kxe3 {[%clk 0:00:19.2]} 46... Nf1+ {[%clk 0:00:17.5]} 47. Ke2
{[%clk 0:00:20.8]} 47... Nxd2 {[%clk 0:00:18.8]} 48. Kxd2 {[%clk 0:00:22.7]}
48... Kxb2 {[%clk 0:00:20.2]} 49. Nf7 {[%clk 0:00:23.6]} 49... Kb3 {[%clk
0:00:22.1]} 50. Ng5 {[%clk 0:00:24.3]} 50... b6 {[%clk 0:00:22.6]} 51. Nxh7
{[%clk 0:00:24.1]} 51... a5 {[%clk 0:00:24.5]} 52. bxa5 {[%clk 0:00:25.5]} 52...
bxa5 {[%clk 0:00:25.8]} 53. Kc1 {[%clk 0:00:24.9]} 53... a4 {[%clk 0:00:27.7]}
54. Kb1 {[%clk 0:00:26.1]} 54... Kxc3 {[%clk 0:00:27.9]} 55. Ng5 {[%clk
0:00:26.5]} 55... Kd3 {[%clk 0:00:29.4]} 56. Ne6 {[%clk 0:00:27.8]} 56... Ke3
{[%clk 0:00:28.3]} 57. Nxg7 {[%clk 0:00:28.6]} 57... Kf4 {[%clk 0:00:30.2]} 58.
Ka2 {[%clk 0:00:28.5]} 58... Kg3 {[%clk 0:00:32.1]} 59. Nf5+ {[%clk 0:00:29.1]}
59... Kxg2 {[%clk 0:00:33.3]} 60. h4 {[%clk 0:00:30.6]} 60... Kf3 {[%clk
0:00:35.1]} 61. h5 {[%clk 0:00:32.1]} 61... Ke4 {[%clk 0:00:36.5]} 62. h6 {[%clk
0:00:34]} 62... Kxf5 {[%clk 0:00:37.9]} 63. h7 {[%clk 0:00:35.9]} 1-0

[Event "*** Titled Tuesday Blitz"]
[Site "Chess.com"]
[Date "2019.03.05"]
[Round "2"]
[White "Sanan_Sjugirov"]
[Black "vovachesss"]
[Result "1-0"]
[WhiteElo "2904"]
[BlackElo "2599"]
[TimeControl "180+2"]
[EndTime "13:24:45 PST"]
[Termination "Sanan_Sjugirov won by resignation"]

1. d4 {[%clk 0:03:01.9]} 1... Nf6 {[%clk 0:02:58]} 2. c4 {[%clk 0:03:02.8]} 2...
e6 {[%clk 0:02:58.2]} 3. Nf3 {[%clk 0:03:03.5]} 3... Bb4+ {[%clk 0:02:59]} 4.
Bd2 {[%clk 0:03:02.4]} 4... Qe7 {[%clk 0:02:59.9]} 5. g3 {[%clk 0:02:53.7]} 5...
O-O {[%clk 0:03:01]} 6. Nc3 {[%clk 0:02:52.8]} 6... b6 {[%clk 0:03:00.9]} 7. Bg2
{[%clk 0:02:49.9]} 7... Bb7 {[%clk 0:03:02.1]} 8. O-O {[%clk 0:02:49]} 8... d5
{[%clk 0:03:00.1]} 9. cxd5 {[%clk 0:02:33.5]} 9... Bxc3 {[%clk 0:02:51.8]} 10.
bxc3 {[%clk 0:02:24.2]} 10... Bxd5 {[%clk 0:02:51.6]} 11. Qc1 {[%clk 0:02:11.3]}
11... c5 {[%clk 0:02:48.6]} 12. c4 {[%clk 0:02:08.7]} 12... Be4 {[%clk
0:02:49.9]} 13. dxc5 {[%clk 0:02:05.4]} 13... Qxc5 {[%clk 0:02:46.1]} 14. Be3
{[%clk 0:02:06.2]} 14... Qe7 {[%clk 0:02:41.3]} 15. c5 {[%clk 0:02:06]} 15...
Rc8 {[%clk 0:02:39.2]} 16. Qa3 {[%clk 0:01:44.6]} 16... Nbd7 {[%clk 0:02:32]}
17. Rac1 {[%clk 0:01:45]} 17... Nxc5 {[%clk 0:02:32.5]} 18. Rfd1 {[%clk
0:01:13.5]} 18... h6 {[%clk 0:02:27.3]} 19. Ne5 {[%clk 0:01:02.2]} 19... Bxg2
{[%clk 0:02:27.5]} 20. Kxg2 {[%clk 0:01:04.1]} 20... Qb7+ {[%clk 0:02:21.6]} 21.
f3 {[%clk 0:01:05.1]} 21... Ncd7 {[%clk 0:02:16.5]} 22. Qe7 {[%clk 0:00:56.5]}
22... Nc5 {[%clk 0:02:05.1]} 23. Bxc5 {[%clk 0:00:56.1]} 23... Qxe7 {[%clk
0:01:55.1]} 24. Bxe7 {[%clk 0:00:58]} 24... Nd5 {[%clk 0:01:56.1]} 25. Rxc8+
{[%clk 0:00:26.9]} 25... Rxc8 {[%clk 0:01:58]} 26. Rxd5 {[%clk 0:00:27.2]} 26...
exd5 {[%clk 0:01:59.9]} 27. Kf2 {[%clk 0:00:22.1]} 27... Rc2 {[%clk 0:01:32.5]}
28. a3 {[%clk 0:00:22.9]} 28... a5 {[%clk 0:01:30.6]} 29. Bd8 {[%clk 0:00:21.5]}
29... Ra2 {[%clk 0:01:22.6]} 30. Be7 {[%clk 0:00:18.7]} 30... Rc2 {[%clk
0:01:21.6]} 31. h4 {[%clk 0:00:15.8]} 31... b5 {[%clk 0:01:20.3]} 32. Nd3 {[%clk
0:00:15.1]} 32... f6 {[%clk 0:01:13.2]} 33. Bd8 {[%clk 0:00:16.2]} 33... b4
{[%clk 0:01:08.1]} 34. axb4 {[%clk 0:00:16.7]} 34... a4 {[%clk 0:01:09.2]} 35.
b5 {[%clk 0:00:17.8]} 35... a3 {[%clk 0:01:04.8]} 36. Bb6 {[%clk 0:00:15.1]}
36... Rb2 {[%clk 0:00:58.6]} 37. Bc5 {[%clk 0:00:15.8]} 37... a2 {[%clk
0:00:58.1]} 38. Nxb2 {[%clk 0:00:16.9]} 38... a1=Q {[%clk 0:00:59.6]} 39. Nd3
{[%clk 0:00:18.2]} 39... Kf7 {[%clk 0:00:56.8]} 40. b6 {[%clk 0:00:19.3]} 40...
Qb1 {[%clk 0:00:57.3]} 41. Be3 {[%clk 0:00:19.4]} 41... g5 {[%clk 0:00:51.3]}
42. hxg5 {[%clk 0:00:20.4]} 42... f5 {[%clk 0:00:52.6]} 43. gxh6 {[%clk
0:00:21.3]} 43... Kg6 {[%clk 0:00:53.5]} 44. Ne5+ {[%clk 0:00:22]} 44... Kh7
{[%clk 0:00:54.8]} 45. Nd7 {[%clk 0:00:22.7]} 45... Qb4 {[%clk 0:00:55]} 46. b7
{[%clk 0:00:19.5]} 46... Qxb7 {[%clk 0:00:55.5]} 47. Nf8+ {[%clk 0:00:20.9]}
47... Kg8 {[%clk 0:00:51.9]} 48. h7+ {[%clk 0:00:22.3]} 48... Qxh7 {[%clk
0:00:07.8]} 49. Nxh7 {[%clk 0:00:22.9]} 49... Kxh7 {[%clk 0:00:09.5]} 50. Bf4
{[%clk 0:00:23.8]} 50... Kg6 {[%clk 0:00:11.4]} 51. Ke3 {[%clk 0:00:24.9]} 51...
Kf7 {[%clk 0:00:13.3]} 52. Kd4 {[%clk 0:00:26.3]} 52... Ke6 {[%clk 0:00:15.2]}
53. e3 {[%clk 0:00:27.2]} 1-0